[Event "Titled Tuesday Blitz November 07 Early 2023"]
[White "Wagner, Dennis"]
[Black "Zhigalko, Sergei"]
[WhiteFideId "24650684"]
[BlackFideId "13502956"]
[WhiteElo "2717"]
[BlackElo "2880"]
[Result "0-1"]
[Round "8"]
[TimeControl "180+1"]
[Date "2023.11.07"]
[WhiteClock "0:00:17"]
[BlackClock "0:00:08"]
[Board "44"]

1. d4 {[%clk 0:03:00]}  Nf6 {[%clk 0:03:00]} 2. c4 {[%clk 0:03:00]}  e6 {[%clk 0:03:00]} 3. Nf3 {[%clk 0:03:00]}  b6 {[%clk 0:03:01]} 4. g3 {[%clk 0:02:59]}  Ba6 {[%clk 0:03:01]} 5. b3 {[%clk 0:02:59]}  Bb4+ {[%clk 0:03:01]} 6. Bd2 {[%clk 0:02:59]}  Be7 {[%clk 0:03:01]} 7. Bg2 {[%clk 0:03:00]}  c6 {[%clk 0:03:00]} 8. O-O {[%clk 0:03:00]}  d5 {[%clk 0:03:01]} 9. Qc2 {[%clk 0:03:00]}  Nbd7 {[%clk 0:03:01]} 10. Rd1 {[%clk 0:03:01]}  O-O {[%clk 0:03:01]} 11. a4 {[%clk 0:03:01]}  Ne4 {[%clk 0:02:59]} 12. Ne5 {[%clk 0:03:01]}  Nxe5 {[%clk 0:02:48]} 13. Bxe4 {[%clk 0:03:01]}  Ng6 {[%clk 0:02:46]} 14. Bg2 {[%clk 0:03:00]}  Qd7 {[%clk 0:02:38]} 15. a5 {[%clk 0:02:49]}  b5 {[%clk 0:02:33]} 16. c5 {[%clk 0:02:37]}  e5 {[%clk 0:02:23]} 17. e3 {[%clk 0:02:36]}  e4 {[%clk 0:02:19]} 18. b4 {[%clk 0:02:32]}  h5 {[%clk 0:02:15]} 19. f3 {[%clk 0:02:26]}  exf3 {[%clk 0:01:58]} 20. Bxf3 {[%clk 0:02:26]}  h4 {[%clk 0:01:58]} 21. Nc3 {[%clk 0:02:26]}  Rae8 {[%clk 0:01:54]} 22. g4 {[%clk 0:02:09]}  Bg5 {[%clk 0:01:50]} 23. Re1 {[%clk 0:02:00]}  h3 {[%clk 0:01:48]} 24. Qf5 {[%clk 0:01:52]}  Qd8 {[%clk 0:01:44]} 25. Bh1 {[%clk 0:01:47]}  Bc8 {[%clk 0:01:20]} 26. Qf3 {[%clk 0:01:46]}  f5 {[%clk 0:01:20]} 27. Rf1 {[%clk 0:00:23]}  fxg4 {[%clk 0:01:15]} 28. Qe2 {[%clk 0:00:23]}  Bf5 {[%clk 0:00:56]} 29. Rxf5 {[%clk 0:00:22]}  Rxf5 {[%clk 0:00:55]} 30. Qxg4 {[%clk 0:00:22]}  Qf6 {[%clk 0:00:44]} 31. Qxh3 {[%clk 0:00:19]}  Rf2 {[%clk 0:00:43]} 32. Rf1 {[%clk 0:00:18]}  Rxf1+ {[%clk 0:00:26]} 33. Qxf1 {[%clk 0:00:19]}  Bxe3+ {[%clk 0:00:26]} 34. Bxe3 {[%clk 0:00:19]}  Qxf1+ {[%clk 0:00:23]} 35. Kxf1 {[%clk 0:00:20]}  Rxe3 {[%clk 0:00:23]} 36. Nxd5 {[%clk 0:00:20]}  cxd5 {[%clk 0:00:22]} 37. Bxd5+ {[%clk 0:00:21]}  Kf8 {[%clk 0:00:22]} 38. Bb7 {[%clk 0:00:22]}  Rc3 {[%clk 0:00:11]} 39. d5 {[%clk 0:00:22]}  Ne5 {[%clk 0:00:11]} 40. Ke2 {[%clk 0:00:20]}  Ke7 {[%clk 0:00:09]} 41. Kd2 {[%clk 0:00:20]}  Rc4 {[%clk 0:00:09]} 42. a6 {[%clk 0:00:21]}  Rxb4 {[%clk 0:00:07]} 43. d6+ {[%clk 0:00:18]}  Kd7 {[%clk 0:00:07]} 44. Bd5 {[%clk 0:00:18]}  Rd4+ {[%clk 0:00:07]} 45. Ke3 {[%clk 0:00:18]}  Rxd5 {[%clk 0:00:08]} 46. Ke4 {[%clk 0:00:17]}  Rxc5 {[%clk 0:00:08]} 0-1


[Site "https://www.chess.com"]

[Event "Titled Tuesday Blitz November 07 Early 2023"]
[White "Dowgird, Filip"]
[Black "Mikhailovsky, Vladimir"]
[WhiteFideId "1121235"]
[BlackFideId "34105414"]
[WhiteElo "2661"]
[BlackElo "2824"]
[Result "1-0"]
[Round "8"]
[TimeControl "180+1"]
[Date "2023.11.07"]
[WhiteClock "0:00:07"]
[BlackClock "0:00:00"]
[Board "47"]

1. d4 {[%clk 0:03:00]}  d5 {[%clk 0:02:56]} 2. Bf4 {[%clk 0:03:00]}  c5 {[%clk 0:02:54]} 3. e3 {[%clk 0:03:00]}  Nf6 {[%clk 0:02:50]} 4. c3 {[%clk 0:03:00]}  e6 {[%clk 0:02:51]} 5. Nd2 {[%clk 0:03:00]}  Bd6 {[%clk 0:02:51]} 6. Bg3 {[%clk 0:03:01]}  O-O {[%clk 0:02:51]} 7. Ngf3 {[%clk 0:03:01]}  Qc7 {[%clk 0:02:52]} 8. Bd3 {[%clk 0:02:58]}  Nbd7 {[%clk 0:02:51]} 9. O-O {[%clk 0:02:56]}  e5 {[%clk 0:02:46]} 10. dxe5 {[%clk 0:02:55]}  Nxe5 {[%clk 0:02:47]} 11. Nxe5 {[%clk 0:02:50]}  Bxe5 {[%clk 0:02:47]} 12. Nf3 {[%clk 0:02:51]}  Bxg3 {[%clk 0:02:44]} 13. hxg3 {[%clk 0:02:52]}  Bg4 {[%clk 0:02:41]} 14. Qa4 {[%clk 0:02:52]}  c4 {[%clk 0:02:15]} 15. Bc2 {[%clk 0:02:51]}  b5 {[%clk 0:02:14]} 16. Qxb5 {[%clk 0:02:25]}  Rab8 {[%clk 0:02:13]} 17. Qa6 {[%clk 0:02:19]}  Rxb2 {[%clk 0:02:10]} 18. Nd4 {[%clk 0:02:18]}  Rb6 {[%clk 0:01:21]} 19. Qa3 {[%clk 0:02:14]}  Bc8 {[%clk 0:01:08]} 20. Rfb1 {[%clk 0:02:10]}  Ra6 {[%clk 0:01:03]} 21. Qc1 {[%clk 0:01:55]}  Qe5 {[%clk 0:00:57]} 22. Rb5 {[%clk 0:01:09]}  Ng4 {[%clk 0:00:35]} 23. e4 {[%clk 0:00:29]}  Qh5 {[%clk 0:00:35]} 24. Nf3 {[%clk 0:00:30]}  Rh6 {[%clk 0:00:25]} 25. Nh4 {[%clk 0:00:30]}  Qe5 {[%clk 0:00:14]} 26. Rxd5 {[%clk 0:00:21]}  Qxc3 {[%clk 0:00:14]} 27. Ba4 {[%clk 0:00:18]}  Qf6 {[%clk 0:00:09]} 28. Qe1 {[%clk 0:00:09]}  Be6 {[%clk 0:00:09]} 29. Rdd1 {[%clk 0:00:04]}  Rxh4 {[%clk 0:00:06]} 30. gxh4 {[%clk 0:00:05]}  Qxh4 {[%clk 0:00:07]} 31. f3 {[%clk 0:00:05]}  Qh2+ {[%clk 0:00:05]} 32. Kf1 {[%clk 0:00:05]}  Ne5 {[%clk 0:00:05]} 33. Qf2 {[%clk 0:00:05]}  Nd3 {[%clk 0:00:05]} 34. Qg1 {[%clk 0:00:06]}  Qg3 {[%clk 0:00:05]} 35. Rd2 {[%clk 0:00:05]}  Rd8 {[%clk 0:00:04]} 36. Bc2 {[%clk 0:00:05]}  Bh3 {[%clk 0:00:03]} 37. Bxd3 {[%clk 0:00:05]}  Qxf3+ {[%clk 0:00:04]} 38. Qf2 {[%clk 0:00:05]}  Bxg2+ {[%clk 0:00:03]} 39. Kg1 {[%clk 0:00:06]}  Qh3 {[%clk 0:00:01]} 40. Qxg2 {[%clk 0:00:06]}  Qe3+ {[%clk 0:00:02]} 41. Qf2 {[%clk 0:00:06]}  Qg5+ {[%clk 0:00:02]} 42. Kf1 {[%clk 0:00:07]}  cxd3 {[%clk 0:00:03]} 43. Rad1 {[%clk 0:00:07]}  Qh5 {[%clk 0:00:02]} 44. Rxd3 {[%clk 0:00:07]}  Qh1+ {[%clk 0:00:02]} 45. Ke2 {[%clk 0:00:07]}  Qh5+ {[%clk 0:00:02]} 46. Qf3 {[%clk 0:00:08]}  Qb5 {[%clk 0:00:02]} 47. Rd2 {[%clk 0:00:08]}  Re8 {[%clk 0:00:03]} 48. Qe3 {[%clk 0:00:07]}  h6 {[%clk 0:00:02]} 49. Kf2 {[%clk 0:00:05]}  Qa5 {[%clk 0:00:02]} 50. Rd4 {[%clk 0:00:03]}  Qh5 {[%clk 0:00:02]} 51. Qf3 {[%clk 0:00:03]}  Qh4+ {[%clk 0:00:02]} 52. Qg3 {[%clk 0:00:03]}  Qf6+ {[%clk 0:00:03]} 53. Kg2 {[%clk 0:00:04]}  Qe6 {[%clk 0:00:02]} 54. Rd8 {[%clk 0:00:04]}  Qe7 {[%clk 0:00:02]} 55. Rxe8+ {[%clk 0:00:04]}  Qxe8 {[%clk 0:00:03]} 56. Qf3 {[%clk 0:00:05]}  Qe6 {[%clk 0:00:03]} 57. Kf2 {[%clk 0:00:05]}  g6 {[%clk 0:00:04]} 58. Qe3 {[%clk 0:00:05]}  Kh7 {[%clk 0:00:04]} 59. Ke2 {[%clk 0:00:05]}  Qc4+ {[%clk 0:00:04]} 60. Qd3 {[%clk 0:00:05]}  Qe6 {[%clk 0:00:05]} 61. Kd1 {[%clk 0:00:06]}  h5 {[%clk 0:00:05]} 62. Rf2 {[%clk 0:00:05]}  Kg8 {[%clk 0:00:04]} 63. Qd5 {[%clk 0:00:05]}  Qe7 {[%clk 0:00:04]} 64. Rb2 {[%clk 0:00:04]}  Kh7 {[%clk 0:00:03]} 65. Rb7 {[%clk 0:00:04]}  Qe8 {[%clk 0:00:01]} 66. Qxf7+ {[%clk 0:00:04]}  Qxf7 {[%clk 0:00:01]} 67. Rxf7+ {[%clk 0:00:05]}  Kh6 {[%clk 0:00:02]} 68. Rxa7 {[%clk 0:00:06]}  Kg5 {[%clk 0:00:01]} 69. Ke2 {[%clk 0:00:06]}  Kf4 {[%clk 0:00:02]} 70. Rg7 {[%clk 0:00:05]}  g5 {[%clk 0:00:02]} 71. a4 {[%clk 0:00:05]}  h4 {[%clk 0:00:02]} 72. a5 {[%clk 0:00:05]}  h3 {[%clk 0:00:03]} 73. a6 {[%clk 0:00:06]}  h2 {[%clk 0:00:03]} 74. Rh7 {[%clk 0:00:06]}  h1=Q {[%clk 0:00:00]} 75. Rxh1 {[%clk 0:00:07]} 1-0


[Site "https://www.chess.com"]

[Event "Titled Tuesday Blitz November 07 Early 2023"]
[White "Suyarov, Mukhammadzokhid"]
[Black "Shuvalova, Polina"]
[WhiteFideId "14210495"]
[BlackFideId "24171760"]
[WhiteElo "2815"]
[BlackElo "2660"]
[Result "1-0"]
[Round "8"]
[TimeControl "180+1"]
[Date "2023.11.07"]
[WhiteClock "0:01:26"]
[BlackClock "0:00:00"]
[Board "48"]

1. d4 {[%clk 0:03:00]}  Nf6 {[%clk 0:02:57]} 2. Nc3 {[%clk 0:03:01]}  d5 {[%clk 0:02:56]} 3. Bf4 {[%clk 0:03:01]}  a6 {[%clk 0:02:56]} 4. e3 {[%clk 0:03:02]}  e6 {[%clk 0:02:56]} 5. g4 {[%clk 0:03:02]}  Bb4 {[%clk 0:02:55]} 6. Ne2 {[%clk 0:03:02]}  O-O {[%clk 0:02:54]} 7. a3 {[%clk 0:03:02]}  Bd6 {[%clk 0:02:52]} 8. g5 {[%clk 0:03:02]}  Ne8 {[%clk 0:02:46]} 9. h4 {[%clk 0:03:02]}  c5 {[%clk 0:02:44]} 10. dxc5 {[%clk 0:03:01]}  Bxc5 {[%clk 0:02:44]} 11. h5 {[%clk 0:03:01]}  Nc6 {[%clk 0:02:43]} 12. Bg2 {[%clk 0:02:59]}  e5 {[%clk 0:02:37]} 13. Bg3 {[%clk 0:02:57]}  d4 {[%clk 0:02:18]} 14. Ne4 {[%clk 0:02:56]}  Bb6 {[%clk 0:02:11]} 15. g6 {[%clk 0:02:56]}  fxg6 {[%clk 0:01:54]} 16. hxg6 {[%clk 0:02:57]}  h6 {[%clk 0:01:55]} 17. Qd3 {[%clk 0:02:49]}  Bf5 {[%clk 0:01:50]} 18. Bh4 {[%clk 0:02:48]}  Qc7 {[%clk 0:01:41]} 19. Qb3+ {[%clk 0:02:37]}  Kh8 {[%clk 0:01:40]} 20. Bg5 {[%clk 0:02:36]}  Bxg6 {[%clk 0:01:33]} 21. O-O-O {[%clk 0:02:30]}  Na5 {[%clk 0:01:23]} 22. Qd3 {[%clk 0:02:26]}  Qf7 {[%clk 0:00:58]} 23. Bxh6 {[%clk 0:02:19]}  gxh6 {[%clk 0:00:55]} 24. Rxh6+ {[%clk 0:02:20]}  Kg7 {[%clk 0:00:56]} 25. Rdh1 {[%clk 0:02:19]}  Nf6 {[%clk 0:00:45]} 26. N2g3 {[%clk 0:02:17]}  Ng4 {[%clk 0:00:39]} 27. Rh7+ {[%clk 0:02:17]}  Bxh7 {[%clk 0:00:36]} 28. Rxh7+ {[%clk 0:02:18]}  Kxh7 {[%clk 0:00:35]} 29. Ng5+ {[%clk 0:02:18]}  Kg7 {[%clk 0:00:34]} 30. Qh7+ {[%clk 0:02:09]}  Kf6 {[%clk 0:00:34]} 31. Nxf7 {[%clk 0:02:10]}  Rxf7 {[%clk 0:00:33]} 32. Qh4+ {[%clk 0:02:10]}  Kg7 {[%clk 0:00:23]} 33. Qxg4+ {[%clk 0:02:11]}  Kf8 {[%clk 0:00:23]} 34. Bd5 {[%clk 0:02:09]}  Rxf2 {[%clk 0:00:18]} 35. Qg8+ {[%clk 0:02:09]}  Ke7 {[%clk 0:00:19]} 36. Nf5+ {[%clk 0:02:06]}  Kf6 {[%clk 0:00:17]} 37. Qe6+ {[%clk 0:01:53]}  Kg5 {[%clk 0:00:17]} 38. Qxb6 {[%clk 0:01:43]}  Rxf5 {[%clk 0:00:10]} 39. Qxa5 {[%clk 0:01:39]}  Rh8 {[%clk 0:00:09]} 40. Qe1 {[%clk 0:01:29]}  dxe3 {[%clk 0:00:07]} 41. Qxe3+ {[%clk 0:01:28]}  Kf6 {[%clk 0:00:08]} 42. b3 {[%clk 0:01:28]}  Rh4 {[%clk 0:00:07]} 43. Qb6+ {[%clk 0:01:27]}  Kg5 {[%clk 0:00:08]} 44. Qxb7 {[%clk 0:01:27]}  e4 {[%clk 0:00:07]} 45. Bxe4 {[%clk 0:01:27]}  Re5 {[%clk 0:00:06]} 46. Qg7+ {[%clk 0:01:26]}  Kf4 {[%clk 0:00:00]} 47. Qf6+ {[%clk 0:01:26]} 1-0


[Site "https://www.chess.com"]

[Event "Titled Tuesday Blitz November 07 Early 2023"]
[White "Thomforde-Toates, Noah"]
[Black "Materia, Marco"]
[WhiteFideId "30951992"]
[BlackFideId "45150451"]
[WhiteElo "2652"]
[BlackElo "2806"]
[Result "0-1"]
[Round "8"]
[TimeControl "180+1"]
[Date "2023.11.07"]
[WhiteClock "0:00:07"]
[BlackClock "0:00:23"]
[Board "49"]

1. d4 {[%clk 0:03:00]}  Nf6 {[%clk 0:02:59]} 2. Nc3 {[%clk 0:03:00]}  d5 {[%clk 0:02:58]} 3. Bf4 {[%clk 0:03:00]}  a6 {[%clk 0:02:56]} 4. e3 {[%clk 0:03:00]}  e6 {[%clk 0:02:57]} 5. Bd3 {[%clk 0:03:00]}  c5 {[%clk 0:02:57]} 6. dxc5 {[%clk 0:03:00]}  Bxc5 {[%clk 0:02:58]} 7. Nf3 {[%clk 0:03:01]}  Nc6 {[%clk 0:02:58]} 8. O-O {[%clk 0:03:01]}  O-O {[%clk 0:02:58]} 9. e4 {[%clk 0:03:02]}  d4 {[%clk 0:02:51]} 10. Ne2 {[%clk 0:03:02]}  Qe7 {[%clk 0:02:47]} 11. e5 {[%clk 0:03:00]}  Nd5 {[%clk 0:02:48]} 12. Bd2 {[%clk 0:02:28]}  h6 {[%clk 0:02:43]} 13. Re1 {[%clk 0:02:27]}  Rd8 {[%clk 0:02:43]} 14. a3 {[%clk 0:02:27]}  b5 {[%clk 0:02:35]} 15. Ng3 {[%clk 0:02:23]}  Bb7 {[%clk 0:02:30]} 16. Qe2 {[%clk 0:02:23]}  Qf8 {[%clk 0:02:10]} 17. Qe4 {[%clk 0:02:16]}  g6 {[%clk 0:02:11]} 18. Qh4 {[%clk 0:02:17]}  h5 {[%clk 0:02:05]} 19. Nxh5 {[%clk 0:02:14]}  gxh5 {[%clk 0:02:03]} 20. Qxh5 {[%clk 0:02:13]}  f5 {[%clk 0:02:00]} 21. exf6 {[%clk 0:02:03]}  Nxf6 {[%clk 0:01:59]} 22. Qg5+ {[%clk 0:02:02]}  Qg7 {[%clk 0:01:57]} 23. Qxc5 {[%clk 0:02:00]}  Rd5 {[%clk 0:01:56]} 24. Qb6 {[%clk 0:01:56]}  Re8 {[%clk 0:01:31]} 25. a4 {[%clk 0:01:34]}  Ne5 {[%clk 0:01:09]} 26. Kf1 {[%clk 0:00:48]}  Nxf3 {[%clk 0:01:06]} 27. gxf3 {[%clk 0:00:49]}  Qh8 {[%clk 0:00:47]} 28. Qxb7 {[%clk 0:00:42]}  Qxh2 {[%clk 0:00:42]} 29. Ke2 {[%clk 0:00:38]}  Re5+ {[%clk 0:00:42]} 30. Be4 {[%clk 0:00:36]}  Rxe4+ {[%clk 0:00:30]} 31. fxe4 {[%clk 0:00:33]}  Ng4 {[%clk 0:00:31]} 32. Rf1 {[%clk 0:00:28]}  Rf8 {[%clk 0:00:30]} 33. Be1 {[%clk 0:00:25]}  Ne3 {[%clk 0:00:27]} 34. e5 {[%clk 0:00:20]}  Qh5+ {[%clk 0:00:23]} 35. f3 {[%clk 0:00:14]}  Nxf1 {[%clk 0:00:23]} 36. Kxf1 {[%clk 0:00:14]}  Rxf3+ {[%clk 0:00:23]} 37. Bf2 {[%clk 0:00:08]}  Qh1+ {[%clk 0:00:22]} 38. Ke2 {[%clk 0:00:08]}  Rxf2+ {[%clk 0:00:22]} 39. Kxf2 {[%clk 0:00:08]}  Qxb7 {[%clk 0:00:23]} 40. Rg1+ {[%clk 0:00:08]}  Kf8 {[%clk 0:00:22]} 41. axb5 {[%clk 0:00:09]}  Qxb5 {[%clk 0:00:22]} 42. b3 {[%clk 0:00:09]}  d3 {[%clk 0:00:23]} 43. cxd3 {[%clk 0:00:09]}  Qxd3 {[%clk 0:00:23]} 44. Rg3 {[%clk 0:00:09]}  Qd2+ {[%clk 0:00:23]} 45. Kg1 {[%clk 0:00:09]}  Ke8 {[%clk 0:00:23]} 46. Rg8+ {[%clk 0:00:09]}  Kd7 {[%clk 0:00:23]} 47. Ra8 {[%clk 0:00:09]}  Qe3+ {[%clk 0:00:23]} 48. Kf1 {[%clk 0:00:07]}  Qf3+ {[%clk 0:00:23]} 0-1


[Site "https://www.chess.com"]

[Event "Titled Tuesday Blitz November 07 Early 2023"]
[White "Yeremyan_ChessMate"]
[Black "Golubev, Mikhail"]
[BlackFideId "14100983"]
[WhiteElo "2775"]
[BlackElo "2621"]
[Result "1-0"]
[Round "8"]
[TimeControl "180+1"]
[Date "2023.11.07"]
[WhiteClock "0:00:50"]
[BlackClock "0:00:00"]
[Board "51"]

1. e4 {[%clk 0:03:00]}  c5 {[%clk 0:02:59]} 2. Nc3 {[%clk 0:03:00]}  Nc6 {[%clk 0:02:58]} 3. Bb5 {[%clk 0:02:59]}  Nd4 {[%clk 0:02:54]} 4. Bc4 {[%clk 0:03:00]}  e6 {[%clk 0:02:52]} 5. Nge2 {[%clk 0:03:00]}  Nf6 {[%clk 0:02:49]} 6. O-O {[%clk 0:02:59]}  a6 {[%clk 0:02:47]} 7. a4 {[%clk 0:02:59]}  d5 {[%clk 0:02:47]} 8. exd5 {[%clk 0:02:59]}  exd5 {[%clk 0:02:47]} 9. Ba2 {[%clk 0:03:00]}  Nxe2+ {[%clk 0:02:33]} 10. Qxe2+ {[%clk 0:02:45]}  Be7 {[%clk 0:02:32]} 11. d3 {[%clk 0:02:45]}  h6 {[%clk 0:02:18]} 12. Bf4 {[%clk 0:02:45]}  O-O {[%clk 0:02:15]} 13. Be5 {[%clk 0:02:45]}  Be6 {[%clk 0:02:15]} 14. Qf3 {[%clk 0:02:43]}  Ng4 {[%clk 0:02:02]} 15. Bg3 {[%clk 0:02:38]}  Nf6 {[%clk 0:02:02]} 16. Be5 {[%clk 0:02:30]}  Ng4 {[%clk 0:02:02]} 17. Bf4 {[%clk 0:02:28]}  Nf6 {[%clk 0:02:00]} 18. h3 {[%clk 0:02:28]}  Qd7 {[%clk 0:01:50]} 19. Be5 {[%clk 0:02:28]}  Rad8 {[%clk 0:01:50]} 20. Rae1 {[%clk 0:02:26]}  b5 {[%clk 0:01:40]} 21. axb5 {[%clk 0:02:21]}  axb5 {[%clk 0:01:41]} 22. Ne2 {[%clk 0:02:20]}  Ra8 {[%clk 0:01:28]} 23. Bb1 {[%clk 0:02:20]}  d4 {[%clk 0:01:14]} 24. Nf4 {[%clk 0:02:20]}  Bd5 {[%clk 0:01:11]} 25. Qg3 {[%clk 0:01:55]}  Bb7 {[%clk 0:01:02]} 26. c3 {[%clk 0:01:51]}  Rfd8 {[%clk 0:00:55]} 27. Bc2 {[%clk 0:01:50]}  dxc3 {[%clk 0:00:43]} 28. bxc3 {[%clk 0:01:48]}  Ra3 {[%clk 0:00:24]} 29. Re2 {[%clk 0:01:16]}  Kh8 {[%clk 0:00:17]} 30. Rfe1 {[%clk 0:01:16]}  g5 {[%clk 0:00:17]} 31. Nh5 {[%clk 0:01:11]}  Qc6 {[%clk 0:00:09]} 32. d4 {[%clk 0:01:08]}  Rxc3 {[%clk 0:00:00]} 33. d5 {[%clk 0:00:50]} 1-0


[Site "https://www.chess.com"]

[Event "Titled Tuesday Blitz November 07 Early 2023"]
[White "OPQRC"]
[Black "Liyanage, Ranindu Dilshan"]
[BlackFideId "9915834"]
[WhiteElo "2569"]
[BlackElo "2773"]
[Result "0-1"]
[Round "8"]
[TimeControl "180+1"]
[Date "2023.11.07"]
[WhiteClock "0:00:18"]
[BlackClock "0:00:53"]
[Board "52"]

1. e4 {[%clk 0:03:00]}  c5 {[%clk 0:02:57]} 2. Nf3 {[%clk 0:03:00]}  Nc6 {[%clk 0:02:57]} 3. b3 {[%clk 0:02:57]}  Nf6 {[%clk 0:02:53]} 4. e5 {[%clk 0:02:53]}  Nd5 {[%clk 0:02:53]} 5. Bb2 {[%clk 0:02:53]}  g6 {[%clk 0:02:51]} 6. Bb5 {[%clk 0:02:52]}  Bg7 {[%clk 0:02:51]} 7. Bxc6 {[%clk 0:02:52]}  dxc6 {[%clk 0:02:50]} 8. Nc3 {[%clk 0:02:50]}  Nc7 {[%clk 0:02:49]} 9. Qe2 {[%clk 0:02:48]}  Bg4 {[%clk 0:02:47]} 10. O-O-O {[%clk 0:02:43]}  Ne6 {[%clk 0:02:44]} 11. Ne4 {[%clk 0:02:37]}  Qd5 {[%clk 0:02:31]} 12. c4 {[%clk 0:02:22]}  Qd7 {[%clk 0:02:13]} 13. Qe3 {[%clk 0:02:18]}  b6 {[%clk 0:01:58]} 14. d4 {[%clk 0:02:15]}  cxd4 {[%clk 0:01:46]} 15. Nxd4 {[%clk 0:02:09]}  Bxd1 {[%clk 0:01:38]} 16. Rxd1 {[%clk 0:02:09]}  Nxd4 {[%clk 0:01:36]} 17. Rxd4 {[%clk 0:01:47]}  Qc7 {[%clk 0:01:35]} 18. Ng5 {[%clk 0:00:53]}  O-O {[%clk 0:01:19]} 19. Rh4 {[%clk 0:00:46]}  h6 {[%clk 0:01:14]} 20. Nf3 {[%clk 0:00:44]}  Rad8 {[%clk 0:01:05]} 21. Rxh6 {[%clk 0:00:40]}  Qd7 {[%clk 0:01:00]} 22. Bc3 {[%clk 0:00:18]}  Qd3 {[%clk 0:00:53]} 0-1


[Site "https://www.chess.com"]

[Event "Titled Tuesday Blitz November 07 Early 2023"]
[White "Orozbaev, Eldiar"]
[Black "Marchesich, Giovanni"]
[WhiteFideId "13802240"]
[BlackFideId "2824790"]
[WhiteElo "2744"]
[BlackElo "2401"]
[Result "1-0"]
[Round "8"]
[TimeControl "180+1"]
[Date "2023.11.07"]
[WhiteClock "0:01:01"]
[BlackClock "0:00:00"]
[Board "55"]

1. e4 {[%clk 0:03:00]}  e5 {[%clk 0:02:55]} 2. Nf3 {[%clk 0:03:00]}  Nc6 {[%clk 0:02:55]} 3. d4 {[%clk 0:03:00]}  exd4 {[%clk 0:02:55]} 4. c3 {[%clk 0:03:00]}  d5 {[%clk 0:02:55]} 5. Bd3 {[%clk 0:02:59]}  dxc3 {[%clk 0:02:22]} 6. exd5 {[%clk 0:02:50]}  Qxd5 {[%clk 0:02:19]} 7. Nxc3 {[%clk 0:02:50]}  Bb4 {[%clk 0:02:17]} 8. O-O {[%clk 0:02:49]}  Bxc3 {[%clk 0:02:16]} 9. bxc3 {[%clk 0:02:49]}  Nge7 {[%clk 0:02:16]} 10. Qc2 {[%clk 0:02:42]}  h6 {[%clk 0:02:11]} 11. c4 {[%clk 0:02:40]}  Qh5 {[%clk 0:02:07]} 12. Bb2 {[%clk 0:02:36]}  O-O {[%clk 0:01:58]} 13. Qc3 {[%clk 0:02:37]}  f6 {[%clk 0:01:57]} 14. Rae1 {[%clk 0:02:36]}  Bg4 {[%clk 0:01:52]} 15. Nd4 {[%clk 0:02:30]}  Ne5 {[%clk 0:01:32]} 16. Bc2 {[%clk 0:02:26]}  c5 {[%clk 0:01:22]} 17. Nb3 {[%clk 0:02:20]}  Be2 {[%clk 0:01:17]} 18. f4 {[%clk 0:02:09]}  Nxc4 {[%clk 0:00:40]} 19. Rxe2 {[%clk 0:01:54]}  Qxe2 {[%clk 0:00:40]} 20. Re1 {[%clk 0:01:55]}  Nd5 {[%clk 0:00:15]} 21. Rxe2 {[%clk 0:01:46]}  Nxc3 {[%clk 0:00:16]} 22. Bxc3 {[%clk 0:01:47]}  Rfe8 {[%clk 0:00:16]} 23. Be4 {[%clk 0:01:44]}  Nd6 {[%clk 0:00:13]} 24. Bd5+ {[%clk 0:01:44]}  Kf8 {[%clk 0:00:12]} 25. Rd2 {[%clk 0:01:44]}  Rac8 {[%clk 0:00:09]} 26. h3 {[%clk 0:01:38]}  Ne4 {[%clk 0:00:09]} 27. Bxe4 {[%clk 0:01:34]}  Rxe4 {[%clk 0:00:10]} 28. Rd7 {[%clk 0:01:34]}  Re7 {[%clk 0:00:10]} 29. Rd5 {[%clk 0:01:33]}  b6 {[%clk 0:00:09]} 30. Kf2 {[%clk 0:01:32]}  Rce8 {[%clk 0:00:09]} 31. Rd2 {[%clk 0:01:31]}  Re3 {[%clk 0:00:09]} 32. Be5 {[%clk 0:01:27]}  Re4 {[%clk 0:00:07]} 33. Bd6+ {[%clk 0:01:21]}  Kf7 {[%clk 0:00:06]} 34. Kf3 {[%clk 0:01:21]}  Re3+ {[%clk 0:00:04]} 35. Kf2 {[%clk 0:01:22]}  R3e4 {[%clk 0:00:05]} 36. g3 {[%clk 0:01:22]}  Ra4 {[%clk 0:00:05]} 37. Bc7 {[%clk 0:01:17]}  Rae4 {[%clk 0:00:04]} 38. h4 {[%clk 0:01:15]}  R4e7 {[%clk 0:00:04]} 39. Bd8 {[%clk 0:01:11]}  Re6 {[%clk 0:00:03]} 40. Rd7+ {[%clk 0:01:08]}  Kg8 {[%clk 0:00:03]} 41. Nd2 {[%clk 0:01:08]}  Rc6 {[%clk 0:00:03]} 42. Nc4 {[%clk 0:01:05]}  Rce6 {[%clk 0:00:03]} 43. Nd6 {[%clk 0:01:04]}  Re2+ {[%clk 0:00:03]} 44. Kf3 {[%clk 0:01:05]}  R8e3+ {[%clk 0:00:03]} 45. Kg4 {[%clk 0:01:05]}  Rg2 {[%clk 0:00:04]} 46. Nf5 {[%clk 0:01:06]}  g6 {[%clk 0:00:02]} 47. Rg7+ {[%clk 0:01:01]}  Kh8 {[%clk 0:00:02]} 48. Rxg6 {[%clk 0:01:01]}  Rd3 {[%clk 0:00:00]} 49. Bxf6+ {[%clk 0:01:01]} 1-0


[Site "https://www.chess.com"]